Cogmind - Beta 14 @@@ ROGUE MODE // 2024.09.08 @ 22:45:56 Player: H3-RMN Result: Destroyed by N6-KI6(E) with Overtuned Barrage Gun Performance ------------- Evolutions (0) 0 Regions Visited (5) 1000 Robots Destroyed (42) 210 Value Destroyed (751) 751 Prototype IDs (16) 320 Alien Tech Used (0) 0 Bonus (530) 530 TOTAL SCORE: 2811 Bonus ------- Follower Combat Kills 270 Registered with UFD 300 Friendly Fire -40 Cogmind --------- Core Integrity 0/250 Matter 178/300 Energy 180/180 System Corruption 2% Temperature Hot (280) Movement Core (1100) Ox21 Location -9/Scraptown Parts ------- > --- POWER (1) -------- Meta Core > --- PROPULSION (2+1) - (None) > --- UTILITY (2+1) ---- High-capacity Storage Unit Cobbler Unit (+) > --- WEAPON (2+1) ----- Subdweller Beam Cannon > --- INVENTORY (20) --- Subdweller Power Source Subdweller Power Source Light Treads Spiked Treads High-capacity Matter Pod (200) Transport Network Coupler Light Armor Plating Hacking Suite Hacking Suite Authchip [Propulsion] Authchip [Propulsion] Authchip [Propulsion] Authchip [Processor] A0-MCA's Component Scanner Multitool Peak State ------------ > --- POWER ------------ Subdweller Power Source > --- PROPULSION ------- Spiked Treads Subdweller Monowheel > --- UTILITY ---------- High-capacity Storage Unit Makeshift Light Armor Plating > --- WEAPON ----------- Subdweller Laser Subdweller Beam Cannon > --- INVENTORY -------- Subdweller Power Source Meta Core Light Treads Armored Wheel Multitool SUBCON Basin [Rating: 35] Favorites ----------- Power Subdweller Power Source Engine Subdweller Power Source Power Core Meta Core Propulsion Subdweller Monowheel Treads Light Treads Wheel Subdweller Monowheel Utility High-capacity Storage Unit Device Seismic Detector Storage High-capacity Storage Unit Processor Expert System Protection Makeshift Light Armor Plating Weapon Subdweller Laser Energy Gun Subdweller Laser Energy Cannon Subdweller Beam Cannon Ballistic Gun Light Assault Rifle Ballistic Cannon Slug Cannon Special Weapon Multitool Build | -11 -10 -10 -10 -9 -9 ------- Run | Yrd Mat Min Sub Rec Scr Slots Evolved . | . . . . . . Power . | . . . . . . Propulsion . | . . . . . . Utility . | . . . . . . Weapon . | . . . . . . Parts Attached 44 | 8 7 3 18 1 7 Power 6 | 1 1 . 3 . 1 Engine 5 | 1 1 . 3 . . Core 1 | . . . . . 1 Reactor . | . . . . . . Propulsion 13 | 3 1 2 5 1 1 Treads 4 | 1 . . 3 . . Leg . | . . . . . . Wheel 9 | 2 1 2 2 1 1 Hover . | . . . . . . Flight . | . . . . . . Utility 7 | 2 2 . 1 . 2 Device 2 | 1 . . . . 1 Storage 2 | 1 1 . . . . Processor 1 | . . . . . 1 Hackware . | . . . . . . Protection 2 | . 1 . 1 . . Artifact . | . . . . . . Weapon 18 | 2 3 1 9 . 3 Energy Gun 3 | 1 1 . 1 . . Energy Cannon 2 | . . . 1 . 1 Ballistic Gun 9 | 1 1 1 5 . 1 Ballistic Cannon 1 | . . . . . 1 Launcher . | . . . . . . Special Weapon 3 | . 1 . 2 . . Impact Weapon . | . . . . . . Slashing Weapon . | . . . . . . Piercing Weapon . | . . . . . . Special Melee Weapon . | . . . . . . Unidentified Prototypes 2 | . . . . . 2 Parts Lost 5 | . 1 . 1 . 3 Power 1 | . . . 1 . . Propulsion 1 | . . . . . 1 Utility 1 | . . . . . 1 Weapon 2 | . 1 . . . 1 Highest Loss Streak 3 | . 1 . 1 . 3 To Critical Strikes . | . . . . . . Average Slot Usage (%) 99 | . 100 100 99 100 98 Engine 13 | . 14 14 14 14 13 Treads 11 | . 14 14 14 14 1 Wheel 16 | . 14 14 13 14 25 Device 2 | . 9 . . . . Storage 13 | . 14 14 14 14 13 Protection 11 | . 4 14 13 14 13 Energy Gun 13 | . 14 14 14 14 13 Energy Cannon 4 | . . . . 14 13 Ballistic Gun 9 | . 14 14 12 . . Peak Build Rating 35 | 7 9 9 20 35 26 Average Rating 14 | 4 8 9 16 19 20 On Entrance 10 | . 7 9 9 20 20 Naked Turns . | . . . . . . Heaviest Build 61 | 14 51 51 61 61 61 Greatest Support 40 | 20 10 10 40 20 32 Greatest Overweight (x) 5 | 1 5 5 5 3 3 Average Overweight (x) 2 | . 3 5 2 3 1 Largest Inventory Capacity 20 | 8 20 20 20 20 20 Average Capacity 19 | 7 16 20 20 20 20 Most Carried 20 | 6 20 20 20 20 20 Average Carried 18 | 3 14 19 19 18 19 Final Capacity 20 | 8 20 20 20 20 20 Final Carried 20 | 6 20 20 19 20 15 Class Distribution -------------------- 79% | Mutant 20% | Scavenger-Mutant Dominant Class ---------------- Mutant | -10/Materials Mutant | -10/Mines Scavenger-Mutant | -10/Subcaves Mutant | -9/Recycling Mutant | -9/Scraptown Resources | -11 -10 -10 -10 -9 -9 ----------- Run | Yrd Mat Min Sub Rec Scr Matter Collected 1194 | 275 303 88 446 36 46 Remotely . | . . . . . . Salvage Created 1335 | 116 797 72 300 . 50 Parts 88 | 5 63 9 11 . . Haulers Intercepted 2 | . 2 . . . . Recyclers Shooed 4 | 1 1 2 . . . Parts Field Recycled . | . . . . . . Retrieved Matter . | . . . . . . Parts Self-Destructed 7 | . . . 7 . . Prevented . | . . . . . . Kills | -11 -10 -10 -10 -9 -9 ------- Run | Yrd Mat Min Sub Rec Scr Combat Hostiles Destroyed 29 | . 18 3 7 . 1 Guns 28 | . 18 3 7 . . Cannons 1 | . . . . . 1 Classes Destroyed 12 | 2 6 . 3 . 1 Worker 4 | . 2 2 . . . Tunneler 1 | 1 . . . . . Hauler 2 | . 2 . . . . Recycler 1 | 1 . . . . . Operator 3 | . 3 . . . . Watcher 2 | . 2 . . . . Swarmer 14 | . 8 3 3 . . Grunt 10 | . 10 . . . . Artisan 2 | . . . 2 . . Cobbler 1 | . . . 1 . . Subdweller 4 | . . . 4 . . Bolteater 1 | . . . . . 1 Best Kill Streak 9 | 2 9 4 3 . 1 Combat Bots Only 7 | . 7 3 3 . 1 Max Kills in Single Turn 2 | 1 2 1 2 . 1 Gunslinging 1 | . . . 1 . . Exploded . | . . . . . . Melee . | . . . . . . Uniques/NPCs Destroyed . | . . . . . . Combat | -11 -10 -10 -10 -9 -9 -------- Run | Yrd Mat Min Sub Rec Scr Hostile Shots Fired 188 | . 53 15 24 . 96 Missed 49 | . 13 2 8 . 26 Damage Taken 1124 | . 394 107 332 . 291 Core 262 | . 99 . 80 . 83 Absorbed by Shields . | . . . . . . Core Remaining (%) 100 | 100 . . . . . Volleys Fired 180 | 5 72 16 65 . 22 Largest 2 | 2 2 2 2 . 1 Hottest 100 | 60 70 70 100 . 80 Shots Fired 315 | 10 143 32 109 . 21 Gun 293 | 10 143 32 104 . 4 Cannon 19 | . . . 2 . 17 Launcher . | . . . . . . Special 3 | . . . 3 . . Kinetic 154 | 5 72 16 48 . 13 Thermal 100 | . 15 16 61 . 8 Explosive . | . . . . . . Electromagnetic 61 | 5 56 . . . . Robot Hit Streak 13 | 8 13 6 12 . 12 Robot Miss Streak 5 | 1 5 2 4 . 2 Penetration Max . | . . . . . . Secondary Targets 4 | . 2 . 2 . . Max Gunslinging Chain 1 | . 1 . 1 . . Shots Hit Robots 177 | 8 83 19 53 . 14 Core Hits 82 | 4 45 10 19 . 4 Critical Kills . | . . . . . . Critical Parts Destroyed . | . . . . . . Critical Strikes 4 | . 3 1 . . . Burn 4 | . 3 1 . . . Melee Attacks . | . . . . . . Impact . | . . . . . . Slashing . | . . . . . . Piercing . | . . . . . . Sneak Attacks . | . . . . . . Combat Hostiles . | . . . . . . Follow-up Attacks . | . . . . . . Damage Inflicted 2367 | 92 962 186 847 . 280 Guns 2126 | 92 949 186 847 . 52 Cannons 228 | . . . . . 228 Explosions . | . . . . . . Melee . | . . . . . . Ramming 13 | . 13 . . . . Kinetic 1015 | 36 381 86 386 . 126 Thermal 832 | . 117 100 461 . 154 Explosive . | . . . . . . Electromagnetic 507 | 56 451 . . . . Impact . | . . . . . . Slashing . | . . . . . . Piercing . | . . . . . . Highest Corruption 2 | . . . . . 2 Average Corruption 1 | . . . . . 1 Corruption Purged . | . . . . . . Corruption Blocked . | . . . . . . Overload Shots . | . . . . . . Overflow Damage 20 | . . . . . 20 Projectiles 20 | . . . . . 20 Explosions . | . . . . . . Melee . | . . . . . . Knockbacks . | . . . . . . Impact . | . . . . . . Kinetic . | . . . . . . Secondary . | . . . . . . Self-Inflicted Damage 6 | . 6 . . . . Shots . | . . . . . . Rammed 1 | . 1 . . . . Targets Rammed 1 | . 1 . . . . Kicked . | . . . . . . Crushed . | . . . . . . Highest Temperature 280 | 40 153 167 8 . 280 Average Temperature 38 | 22 28 52 5 . 93 Received Heat Transfer 180 | . 114 . 66 . . Siege Activations . | . . . . . . Robots Corrupted . | . . . . . . Combat Hostiles . | . . . . . . Parts Fried 2 | 1 1 . . . . Impact Corruptions . | . . . . . . Robots Melted . | . . . . . . Combat Hostiles . | . . . . . . Parts Melted 2 | . . . 2 . . Heat Transferred 1967 | . 555 370 795 . 247 Parts Sabotaged . | . . . . . . Parts Stolen 4 | . . . . . 4 Parts Stripped . | . . . . . . Power Chain Reactions . | . . . . . . Alert | -11 -10 -10 -10 -9 -9 ------- Run | Yrd Mat Min Sub Rec Scr Peak Influence 355 | 10 355 126 . 144 . Initial 46 | . 6 46 . 33 . Average 117 | 3 192 42 . 78 . Maximum Alert Level 1 | . 1 . . . . Low Security (%) 80 | 100 58 100 . 100 . Level 1 19 | . 41 . . . . Level 2 . | . . . . . . Level 3 . | . . . . . . Level 4 . | . . . . . . Level 5 . | . . . . . . High Security . | . . . . . . Max Security . | . . . . . . Squads Dispatched 4 | . 4 . . . . Investigation 1 | . 1 . . . . Extermination . | . . . . . . Reinforcement 3 | . 3 . . . . Assault . | . . . . . . Garrison . | . . . . . . Intercept . | . . . . . . Searches Triggered . | . . . . . . Construction Impeded . | . . . . . . Haulers Reinforced . | . . . . . . Active Scanning Responses . | . . . . . . Cargo Convoy Interrupts . | . . . . . . Stealth | -11 -10 -10 -10 -9 -9 --------- Run | Yrd Mat Min Sub Rec Scr Distress Signals 4 | . 4 . . . . Communications Jammed . | . . . . . . Distress Signals . | . . . . . . Times Spotted 55 | . 30 5 15 . 5 Peak Tracking Total 5 | . 5 3 4 . 5 Tactical Retreats 1 | . . . 1 . . Traps | -11 -10 -10 -10 -9 -9 ------- Run | Yrd Mat Min Sub Rec Scr Traps Triggered 1 | . 1 . . . . Indirectly . | . . . . . . Trap Hack Attempts . | . . . . . . Triggered . | . . . . . . Disarmed . | . . . . . . Reprogrammed . | . . . . . . Reused . | . . . . . . Traps Extracted . | . . . . . . Installed . | . . . . . . Triggered 2 | . . . 2 . . Most Traps Carried 1 | . . . 1 . . Machines | -11 -10 -10 -10 -9 -9 ---------- Run | Yrd Mat Min Sub Rec Scr Machines Disabled 1 | . . . . . 1 Max in Single Turn 1 | . . . . . 1 Machines Repaired . | . . . . . . Machines Dismantled . | . . . . . . Machines Sabotaged . | . . . . . . Overloaded Fab Kills . | . . . . . . Hacking | -11 -10 -10 -10 -9 -9 --------- Run | Yrd Mat Min Sub Rec Scr Machines Accessed 15 | . 5 . . 9 1 Terminals 9 | . 4 . . 5 . Fabricators . | . . . . . . Repair Stations . | . . . . . . Recycling Units 5 | . 1 . . 4 . Scanalyzers . | . . . . . . Garrison Access . | . . . . . . Total Hacks 43 | . 15 . . 24 4 Successful 29 | . 9 . . 16 4 Failed 13 | . 5 . . 8 . Catastrophic 2 | . . . . 2 . Database Lockouts 1 | . 1 . . . . Manual 24 | . 11 . . 13 . Terminals 28 | . 14 . . 14 . Fabricators . | . . . . . . Repair Stations . | . . . . . . Recycling Units 11 | . 1 . . 10 . Scanalyzers . | . . . . . . Garrison Access . | . . . . . . Terminal Hacks 11 | . 3 . . 4 4 Record 4 | . . . . . 4 Part Schematic 1 | . . . . 1 . Robot Analysis 2 | . 2 . . . . Prototype ID Bank 3 | . 1 . . 2 . Terminal Index 1 | . . . . 1 . Fabricator Hacks . | . . . . . . Repair Station Hacks . | . . . . . . Recycling Unit Hacks 6 | . 1 . . 5 . Report Inventory 5 | . 1 . . 4 . Retrieve Components 1 | . . . . 1 . Scanalyzer . | . . . . . . Garrison Access Hacks . | . . . . . . Unauthorized Hacks 12 | . 5 . . 7 . Terminals 8 | . 5 . . 3 . Track 1 | . 1 . . . . Botnet 1 | . . . . 1 . Skim 6 | . 4 . . 2 . Fabricators . | . . . . . . Repair Stations . | . . . . . . Recycling Units 4 | . . . . 4 . Tunnel 4 | . . . . 4 . Scanalyzers . | . . . . . . Garrison Access . | . . . . . . Data Cores Recovered . | . . . . . . Used . | . . . . . . Hacking Detections 12 | . 4 . . 8 . Full Trace Events 1 | . . . . 1 . Feedback Events . | . . . . . . Feedback Blocked . | . . . . . . Robot Schematics Acquired . | . . . . . . Robots Built . | . . . . . . Authchips . | . . . . . . Time . | . . . . . . Total Robot Build Rating . | . . . . . . Part Schematics Acquired 1 | . . . . 1 . Parts Built . | . . . . . . Authchips . | . . . . . . Time . | . . . . . . Total Part Build Rating . | . . . . . . Parts Repaired . | . . . . . . Time . | . . . . . . Parts Recycled . | . . . . . . Recycled Matter . | . . . . . . Retrieved Matter . | . . . . . . Retrieved Components 3 | . . . . 3 . Parts Scanalyzed . | . . . . . . Part Schematics Acquired . | . . . . . . Parts Damaged . | . . . . . . Bothacking | -11 -10 -10 -10 -9 -9 ------------ Run | Yrd Mat Min Sub Rec Scr Used RIF Installer . | . . . . . . Robots Hacked . | . . . . . . Non-combat . | . . . . . . Combat . | . . . . . . Robot Hacks Applied . | . . . . . . Relay Couplers Released . | . . . . . . Fabnet Peak Effective % . | . . . . . . Robots Rewired . | . . . . . . Allies Hacked . | . . . . . . Hacks Repelled . | . . . . . . Allies | -11 -10 -10 -10 -9 -9 -------- Run | Yrd Mat Min Sub Rec Scr Total Allies 5 | . . 5 . . . Largest Group 4 | . . 4 4 . . Highest-Rated Group 77 | . . 77 77 . . Highest-Rated Ally 31 | . . 31 31 . . Total Orders . | . . . . . . Ally Attacks 78 | . . 10 68 . . Total Damage 1102 | . . 67 1035 . . Kills 10 | . . 3 7 . . Allies Corrupted . | . . . . . . Allies Melted . | . . . . . . Intel | -11 -10 -10 -10 -9 -9 ------- Run | Yrd Mat Min Sub Rec Scr Robot Analysis Total 2 | . 2 . . . . Derelict Logs Recovered 2 | . . 2 . . . Drone Launches . | . . . . . . Drone Recoveries . | . . . . . . Exploration | -11 -10 -10 -10 -9 -9 ------------- Run | Yrd Mat Min Sub Rec Scr Turns Passed 6062 | 72 1359 976 1832 512 1311 Spaces Moved 3961 | 52 813 581 1082 334 1099 Core 4 | 4 . . . . . Treads 4 | . . . 4 . . Legs . | . . . . . . Wheels 3953 | 48 813 581 1078 334 1099 Hover . | . . . . . . Flight . | . . . . . . Fastest Speed 50 | 50 95 155 130 140 112 Average Speed 130 | 77 131 155 132 140 114 Slowest Speed 240 | 95 155 155 240 140 140 Overloaded Moves . | . . . . . . Propulsion Burnouts . | . . . . . . Robots Hopped . | . . . . . . Cave-ins Triggered . | . . . . . . Exploration Rate (%) 68 | 3 95 97 46 87 84 Regions Visited 5 Branch Regions 4 Pre-discovered Areas 5 | . . 1 . 4 . Known Exits Taken . | . . . . . . Unknown Exits Taken 5 | 1 1 1 1 1 . Scrap Searched 6 | . . 1 3 . 2 Spaces Dug 7 | . . . 7 . . Terrain Destroyed 9 | . . . 7 . 2 Melee . | . . . . . . Projectile 9 | . . . 7 . 2 AOE . | . . . . . . Terrain Rammed . | . . . . . . Walls Destroyed . | . . . . . . Machines Disabled . | . . . . . . Actions | -11 -10 -10 -10 -9 -9 --------- Run | Yrd Mat Min Sub Rec Scr Total 4567 | 70 974 630 1375 387 1131 Wait 269 | . 59 26 168 15 1 Move 3956 | 51 812 580 1081 333 1099 Hop . | . . . . . . Pick Up 61 | 6 17 1 16 20 1 Fast Attach 13 | 7 1 . 4 . 1 Attach 7 | . 1 . 3 . 3 Detach . | . . . . . . Swap 24 | 1 5 3 11 1 3 Drop 56 | . 6 4 27 18 1 Fire 180 | 5 72 16 65 . 22 Melee . | . . . . . . Ram 1 | . 1 . . . . Kick . | . . . . . . Crush . | . . . . . . Escape Stasis . | . . . . . . Rewire . | . . . . . . Trap . | . . . . . . Miscellaneous . | . . . . . . Route ------- -11/Scrapyard -10/Materials (discovered 4 exits: [*Mat x3] / [*Min]) -10/Mines (discovered 3 exits: [*Mat x2] / [*Sub]) -10/Subcaves -9/Recycling (discovered 2 exits: [*Fac] / *Scr) -9/Scraptown History --------- Turn | Location | Event 14 | -11/Scrapyard | Discovered new exit (range 16) 73 | -11/Scrapyard | Entered Materials 191 | -10/Materials | Central database locked down 209 | -10/Materials | Destroyed 7 combat bots 230 | -10/Materials | Discovered new exit (range 16) 291 | -10/Materials | Discovered new exit (range 5) 301 | -10/Materials | Build established: Mutant 337 | -10/Materials | Discovered new exit (range 14) 771 | -10/Materials | Discovered new exit (range 3) 1432 | -10/Materials | Entered Mines 1563 | -10/Mines | Learned Materials non-interactive machine intel 1635 | -10/Mines | Discovered new exit (range 6) 1698 | -10/Mines | Assisted by bots powering up and referring to "LRC-V3" 2002 | -10/Mines | Learned location of Storage (-9) 2262 | -10/Mines | Discovered new exit (range 7) 2379 | -10/Mines | Discovered new exit (range 12) 2408 | -10/Mines | Entered Subcaves 2408 | -10/Subcaves | Accompanied by 4 allies 2413 | -10/Subcaves | Led the pair of lost Derelicts to an unsafe place 2558 | -10/Subcaves | A Subdweller sparked back to life 2558 | -10/Subcaves | A Subdweller sparked back to life 2558 | -10/Subcaves | A Subdweller sparked back to life 2569 | -10/Subcaves | Core integrity fell below 50% 2581 | -10/Subcaves | Found Prototype Power Core 2895 | -10/Subcaves | Build established: Scavenger-Mutant 2966 | -10/Subcaves | Ambushed by angry Subdweller bent on revenge 3574 | -10/Subcaves | Ambushed by angry Subdweller bent on revenge 3908 | -10/Subcaves | Shifting Twisted Machinery released Slug Cannon 4051 | -10/Subcaves | Shifting Twisted Machinery released Piercing Trap 4082 | -10/Subcaves | Shifting Twisted Machinery released Riot Gun 4134 | -10/Subcaves | Shifting Twisted Machinery released Sub. Optics 4237 | -10/Subcaves | Discovered new exit (range 3) 4240 | -10/Subcaves | Entered Recycling 4357 | -9/Recycling | Build established: Mutant 4650 | -9/Recycling | Discovered new exit (range 16) 4674 | -9/Recycling | Scanned before Scraplab entrance 4693 | -9/Recycling | Entered Scraplab 4707 | -9/Recycling | Found SUBCON Basin 4749 | -9/Recycling | Discovered new exit (range 3) 4752 | -9/Recycling | Entered Scraptown 5060 | -9/Scraptown | Visited Spacefarers 5081 | -9/Scraptown | Visited Red Mages 5120 | -9/Scraptown | Visited TADAMA 5139 | -9/Scraptown | Visited SPCMW 5175 | -9/Scraptown | Visited Fellowship of the Rings 5348 | -9/Scraptown | Visited Cave Peace 5407 | -9/Scraptown | Visited UFD Registry 5407 | -9/Scraptown | Registered with UFD as "Rustflow" 5437 | -9/Scraptown | Visited Junk Repository 5458 | -9/Scraptown | Visited Supply Room 5476 | -9/Scraptown | Visited Abandonware Association 5489 | -9/Scraptown | Learned abandonware demo "SHUTEYE.EXE" 5489 | -9/Scraptown | Learned abandonware demo "ERRANTS.EXE" 5532 | -9/Scraptown | Delivered Scrap Shield to a Scientist 5623 | -9/Scraptown | Visited Curators Association 5661 | -9/Scraptown | Visited Supply Room 5726 | -9/Scraptown | Visited Scrap Suit Storage 5740 | -9/Scraptown | Visited A0-MCA Data Center 5762 | -9/Scraptown | Visited Infowarlord's Domain 5780 | -9/Scraptown | Visited Observation Area 5807 | -9/Scraptown | Visited Modified Component R&D 5990 | -9/Scraptown | Given a C+ rating by A0-MCA 5994 | -9/Scraptown | Found A0-MCA's Component Scanner 6002 | -9/Scraptown | Attacked by Scraptown defenders 6010 | -9/Scraptown | Found Prototype Processor 6010 | -9/Scraptown | Identified Expert System 6036 | -9/Scraptown | Core integrity fell below 20% 6039 | -9/Scraptown | Identified Meta Core 6041 | -9/Scraptown | Attached Meta Core, gained temporary slots: Propulsion, Utility, Weapon 6063 | -9/Scraptown | Destroyed by N6-KI6(E) with Overtuned Barrage Gun Last Messages --------------- Ripteeth. 06039_ Sub. Monowheel ripped off. 06041_ Core temporarily expanded with Propulsion slot. 06041_ Core temporarily expanded with Utility slot. 06041_ Core temporarily expanded with Weapon slot. 06042_ AO-GIV(r) follow-up attacks with Ripteeth. 06044_ Destroyed Ripteeth. 06046_ GP-0WS(r) follow-up attacks with Ripteeth. 06048_ Autogun ripped off. 06049_ PL-ZVT(r) follow-up attacks with Ripteeth. 06051_ Destroyed Ripteeth. 06057_ PL-ZVT(r) follow-up attacks with Ripteeth. 06061_ AO-GIV(r) destroyed. Map ----- +----------------------------------------------------+ | ?????????????????????????????????????????????????? | | ?????????????????????????????????????????????????? | | ?????????????????????????????????????????????????? | | ?????????????????????????????????????????????????? | | ?????????????????????????????????????????????????? | | ?????????????????????????????????????????????????? | | ?????????????????????????????????????????????????? | | ???????????????????????######????????????????????? | | ??????????????????????? !"#????????????????????? | | ?????????######## ?????" "?????????????????????? | | ????#????# ## ####X ##????????????????????? | | ???"#????#! !## #" "#????????????????????? | | ???"#????#! !## #"! !"#????????????????????? | | ?? "#????#! !## #" "#????????????????????? | | "" "#????#! !## #"! !"#????????????????????? | | "#????#! !## #"! "#????????????????????? | | #????# ## ## ##????????????????????? | | #????# ??# # #????????????????????? | | #####?????# #???# ## #######????????????????????? | | ########### ##### ## #############??????????????? | | """"""""""" """"" "" "##""""""""""??????????????? | | "## "" """"""#?????????????? | | "## """""""#?????????????? | | "## % """"#?????????????? | | "#r % """"#?????????????? | | rp@ """"#?????????????? | | """"""""""""""""" "#E]"""!"""""#?????????????? | | """"""""""""""""" "##="" """"""#?????????????? | | ###############"" "## """""""""#?????????????? | | ##????????#"" "#############?????????????? | | X"?????????#"" "##""""""#?????????????????? | | " ##????????#"" "## "[[["#?????????????????? | | "" X"#??????###"" "## [[[[#?????????????????? | | " ######### #"" "## #?????????????????? | | #?????????????????? | | "## "#?????????????????? | | " ######### #"" "## "" "#?????????????????? | | "" ""#??????###"" "##""""""#?????????????????? | | " ##????????#"" "######????????????????????? | | ""?????????#"" "#?????????????????????????? | | ##????????#"" "####?###??##??????????????? | | ###############"" "##"###"###"#??????????????? | | """"""""""""""""" "## "[" "=" #??????????????? | | """"""""""""""""" """ """ ###????????????? | | "## "#????????????? | | "## ""##????????????? | | "## "=#?????????????? | | ## ""##????????????? | | # "#????????????? | | " """"""""""" """""" ## """ """ ###????????????? | +----------------------------------------------------+ Best States ------------- Heat Dissipation 25 Energy Generation 17 Energy Capacity 250 Matter Stores 300 Matter Capacity 300 Sight Range 16 Terrain Scan Density 10 Armor Coverage 150 Evasion (%) 44 Recoil Reduction 2 Authchip Count 4 Item Schematics ----------------- Transmission Jammer | -9/Recycling | Hacked Robot Schematics ------------------ None Fabricated ------------ Nothing Alien Tech Used ----------------- None Achievements -------------- None Challenges ------------ None Game ------ Seed ZhirovPulseMegatreads Manual? 0 Play Time 00:42:19 Cumulative 509.4 hours Start 2024.09.08 @ 22:05:11 End 2024.09.08 @ 22:45:56 Sessions 1 Manual Loads 0 Difficulty Rogue Special Mode None Game No. 198 Rogue 194 Adventurer 4 Explorer 0 Win Type - Total 7 Types 4/1/0/1/0/1/0/0/0 Lore% 85 Gallery% 90 Achievement% 87 Wizard Run 0 Options --------- Layout 1 ASCII 0 Keyboard 0 Movement Numpad Keybinds 0 Fullscreen 2 Font 24/Terminus Map View 50x35 Zoom Use 0% Tactical HUD 1 Map Filters NONE Filters NONE Steam 1 RUN: 1714291a-650f-4b80-b28a-8c4175636658